fUST/lending_fUST_20260309
["ID","MTS","AMOUNT","RATE_DAILY","PERIOD"]
[408010999,1773022246555,-9255.28352557,2.6e-05,2]
[408011001,1773022246566,-2997.23367833,2.6e-05,2]
[408011105,1773022644569,-1425.92641124,2.4e-05,2]
[408011106,1773022644592,-574.07358876,2.424e-05,2]
[408011107,1773022646487,-2000.0,2.424e-05,2]
[408011108,1773022646797,-2000.0,2.424e-05,2]
[408011109,1773022647100,-425.92641124,2.424e-05,2]
[408011110,1773022647125,-1574.07358876,2.448e-05,2]
[408011111,1773022647413,-2000.0,2.448e-05,2]
[408011112,1773022648605,-1087.34927552,2.448e-05,2]
[408011113,1773022648627,-305.12738171,2.461e-05,2]
[408011114,1773022648647,-300.0,2.497e-05,2]
[408011115,1773022648669,-307.52334277,2.5e-05,2]
[408011116,1773022648714,-2000.0,2.5e-05,2]
[408011117,1773022648754,-2000.0,2.5e-05,2]
[408011118,1773022648792,-2000.0,2.5e-05,2]
[408011119,1773022650587,-2000.0,2.5e-05,2]
[408011120,1773022650893,-2000.0,2.5e-05,2]
[408011121,1773022651225,-2000.0,2.5e-05,2]
[408011122,1773022651564,-2000.0,2.5e-05,2]
[408011123,1773022651996,-2000.0,2.5e-05,2]
[408011124,1773022652455,-725.26122947,2.475e-05,2]
[408011125,1773022652478,-1274.73877053,2.5e-05,2]
[408011126,1773022652911,-2000.0,2.5e-05,2]
[408011127,1773022653378,-2000.0,2.5e-05,2]
[408011128,1773022653814,-2000.0,2.5e-05,2]
[408011129,1773022654160,-2000.0,2.5e-05,2]
[408011130,1773022654642,-2000.0,2.5e-05,2]
[408011131,1773022654946,-2000.0,2.5e-05,2]
[408011132,1773022655273,-2000.0,2.5e-05,2]
[408011133,1773022655602,-2000.0,2.5e-05,2]
[408011134,1773022655980,-2000.0,2.5e-05,2]
[408011135,1773022656412,-2000.0,2.5e-05,2]
[408011136,1773022656742,-2000.0,2.5e-05,2]
[408011137,1773022657187,-2000.0,2.5e-05,2]
[408011138,1773022657654,-2000.0,2.5e-05,2]
[408011139,1773022657973,-2000.0,2.5e-05,2]
[408011140,1773022658355,-2000.0,2.5e-05,2]
[408011141,1773022659522,-2000.0,2.5e-05,2]
[408011142,1773022659558,-2000.0,2.5e-05,2]
[408011143,1773022659591,-2000.0,2.5e-05,2]
[408011144,1773022659662,-2000.0,2.5e-05,2]
[408011145,1773022660122,-2000.0,2.5e-05,2]
[408011146,1773022660539,-2000.0,2.5e-05,2]
[408011147,1773022660864,-2000.0,2.5e-05,2]
[408011148,1773022661482,-2000.0,2.5e-05,2]
[408011149,1773022661904,-2000.0,2.5e-05,2]
[408011150,1773022662060,-2000.0,2.5e-05,2]
[408011151,1773022662417,-2000.0,2.5e-05,2]
[408011152,1773022662753,-2000.0,2.5e-05,2]
[408011153,1773022663079,-2000.0,2.5e-05,2]
[408011154,1773022663909,-2000.0,2.5e-05,2]
[408011155,1773022664230,-2000.0,2.5e-05,2]
[408011156,1773022664673,-2000.0,2.5e-05,2]
[408011157,1773022665803,-2000.0,2.5e-05,2]
[408011158,1773022666131,-2000.0,2.5e-05,2]
[408011159,1773022666443,-2000.0,2.5e-05,2]
[408011160,1773022666761,-2000.0,2.5e-05,2]
[408011161,1773022667125,-2000.0,2.5e-05,2]
[408011162,1773022667438,-2000.0,2.5e-05,2]
[408011163,1773022667735,-2000.0,2.5e-05,2]
[408011164,1773022668368,-2000.0,2.5e-05,2]
[408011165,1773022670131,-2000.0,2.5e-05,2]
[408011166,1773022674086,-1000.0,2.5e-05,2]
[408011167,1773022695987,-300.0,2.499e-05,2]
[408011168,1773022696009,-14300.0,2.5e-05,2]
[408011169,1773022720565,-5000.0,2.475e-05,2]
[408011170,1773022720589,-13000.0,2.5e-05,2]
[408011171,1773022742151,-2000.0,2.425e-05,2]
[408011172,1773022743390,-2000.0,2.425e-05,2]
[408011173,1773022743933,-1000.0,2.425e-05,2]
[408011174,1773022743956,-151.21344156,2.45e-05,2]
[408011175,1773022743977,-839.06709249,2.475e-05,2]
[408011176,1773022743999,-9.71946595,2.499e-05,2]
[408011177,1773022744028,-290.28053405,2.499e-05,2]
[408011178,1773022744051,-1709.71946595,2.5e-05,2]
[408011179,1773022744385,-2000.0,2.5e-05,2]
[408011180,1773022744700,-2000.0,2.5e-05,2]
[408011181,1773022745017,-2000.0,2.5e-05,2]
[408011182,1773022745392,-2000.0,2.5e-05,2]
[408011183,1773022745690,-2000.0,2.5e-05,2]
[408011184,1773022746533,-2000.0,2.5e-05,2]
[408011185,1773022746570,-2000.0,2.5e-05,2]
[408011186,1773022746668,-2000.0,2.5e-05,2]
[408011187,1773022746987,-2000.0,2.5e-05,2]
[408011188,1773022747320,-2000.0,2.5e-05,2]
[408011189,1773022747652,-2000.0,2.5e-05,2]
[408011190,1773022747978,-2000.0,2.5e-05,2]
[408011191,1773022748426,-2000.0,2.5e-05,2]
[408011192,1773022748889,-2000.0,2.5e-05,2]
[408011193,1773022749189,-2000.0,2.5e-05,2]
[408011194,1773022749548,-2000.0,2.5e-05,2]
[408011195,1773022750116,-2000.0,2.5e-05,2]
[408011196,1773022750455,-2000.0,2.5e-05,2]
[408011197,1773022750897,-2000.0,2.5e-05,2]
[408011198,1773022751251,-2000.0,2.5e-05,2]
[408011199,1773022751559,-2000.0,2.5e-05,2]
[408011200,1773022752020,-2000.0,2.5e-05,2]
[408011201,1773022752817,-2000.0,2.5e-05,2]
[408011202,1773022753769,-2000.0,2.5e-05,2]
[408011203,1773022754657,-2000.0,2.5e-05,2]
[408011204,1773022756135,-2000.0,2.5e-05,2]
[408011205,1773022759969,-2000.0,2.5e-05,2]
[408011206,1773022760729,-2000.0,2.5e-05,2]
[408011207,1773022762052,-2000.0,2.5e-05,2]
[408011208,1773022763145,-2000.0,2.5e-05,2]
[408011209,1773022764010,-2000.0,2.5e-05,2]
[408011210,1773022764972,-2000.0,2.5e-05,2]
[408011211,1773022765828,-2000.0,2.5e-05,2]
[408011212,1773022766862,-2000.0,2.5e-05,2]
[408011214,1773022828454,-2000.0,2.495e-05,2]
[408011215,1773022829426,-1254.9486397,2.495e-05,2]
[408011216,1773022829452,-300.0,2.499e-05,2]
[408011217,1773022829478,-445.0513603,2.499e-05,2]
[408011218,1773022830816,-754.9486397,2.499e-05,2]
[408011219,1773022830839,-1245.0513603,2.5e-05,2]
[408011220,1773022831154,-2000.0,2.5e-05,2]
[408011221,1773022831477,-2000.0,2.5e-05,2]
[408011222,1773022831775,-2000.0,2.5e-05,2]
[408011223,1773022832111,-2000.0,2.5e-05,2]
[408011224,1773022832592,-2000.0,2.5e-05,2]
[408011225,1773022833035,-2000.0,2.5e-05,2]
[408011226,1773022833352,-2000.0,2.5e-05,2]
[408011227,1773022833640,-2000.0,2.5e-05,2]
[408011228,1773022833965,-2000.0,2.5e-05,2]
[408011229,1773022835286,-2000.0,2.5e-05,2]
[408011230,1773022835316,-2000.0,2.5e-05,2]
[408011231,1773022835353,-2000.0,2.5e-05,2]
[408011232,1773022835380,-2000.0,2.5e-05,2]
[408011233,1773022835702,-2000.0,2.5e-05,2]
[408011234,1773022836198,-2000.0,2.5e-05,2]
[408011235,1773022836539,-2000.0,2.5e-05,2]
[408011236,1773022836971,-2000.0,2.5e-05,2]
[408011237,1773022837428,-2000.0,2.5e-05,2]
[408011238,1773022837746,-2000.0,2.5e-05,2]
[408011239,1773022838026,-2000.0,2.5e-05,2]
[408011240,1773022913844,-300.0,2.499e-05,2]
[408011246,1773023014368,-300.0,2.499e-05,2]
[408011247,1773023014390,-17000.0,2.5e-05,2]
[408011259,1773023300195,1220.5,0.00027397,120]
[408011260,1773023427721,2524.7,0.00027397,120]
[408011276,1773023431519,-5000.0,2.425e-05,2]
[408011278,1773023431532,-308.96041384,2.474e-05,2]
[408011279,1773023431544,-1200.0,2.497e-05,2]
[408011281,1773023431557,-300.0,2.498e-05,2]
[408011283,1773023431568,-300.0,2.498e-05,2]
[408011284,1773023431580,-300.0,2.498e-05,2]
[408011285,1773023431592,-300.0,2.498e-05,2]
[408011287,1773023431604,-1291.03958416,2.5e-05,2]
[408011289,1773023431619,-778.35136686,2.5e-05,2]
[408011291,1773023431634,-594.54488708,2.5e-05,2]
[408011293,1773023431648,-2987.77091869,2.5e-05,2]
[408011295,1773023431662,-632.70328168,2.5e-05,2]
[408011297,1773023431676,-3208.81236043,2.5e-05,2]
[408011300,1773023431702,-866.0009824,2.5e-05,2]
[408011302,1773023431722,-1000.0,2.5e-05,2]
[408011305,1773023431738,-1000.0,2.5e-05,2]
[408011307,1773023431754,-495.27563688,2.5e-05,2]
[408011661,1773023437809,-504.72436312,2.5e-05,2]
[408011662,1773023437823,-1000.0,2.5e-05,2]
[408011663,1773023437836,-1000.0,2.5e-05,2]
[408011665,1773023437851,-1000.0,2.5e-05,2]
[408011667,1773023437863,-1000.0,2.5e-05,2]
[408011670,1773023437876,-1000.0,2.5e-05,2]
[408011672,1773023437888,-1000.0,2.5e-05,2]
[408011674,1773023437901,-1000.0,2.5e-05,2]
[408011677,1773023437913,-1000.0,2.5e-05,2]
[408011679,1773023437926,-1000.0,2.5e-05,2]
[408011681,1773023437938,-1000.0,2.5e-05,2]
[408011683,1773023437950,-658.70987678,2.5e-05,2]
[408011686,1773023437964,-341.29012322,2.5e-05,2]
[408011688,1773023437977,-1000.0,2.5e-05,2]
[408011691,1773023437989,-1000.0,2.5e-05,2]
[408011693,1773023438002,-954.01326387,2.5e-05,2]
[408011695,1773023438015,-152.05685659,2.5e-05,2]
[408011698,1773023438029,-192.43027691,2.574e-05,2]
[408011700,1773023438042,-1680.0,2.747e-05,2]
[408011702,1773023438054,-227.0,2.748e-05,2]
[408011705,1773023438069,-420.0,2.748e-05,2]
[408011707,1773023438080,-312.0,2.748e-05,2]
[408011709,1773023438092,-726.2772112,2.816e-05,2]
[408011711,1773023438106,-2311.4551721,2.821e-05,2]
[408011714,1773023438119,-162.0543504,2.887e-05,2]
[408011716,1773023438130,-515.7553627,2.893e-05,2]
[408011718,1773023438143,-187.06,2.9e-05,2]
[408011720,1773023438156,-27163.8946252,2.968e-05,2]
[408011721,1773023438168,-587.0,3.023e-05,2]
[408011722,1773023438180,-13932.00990632,3.069e-05,2]
[408011723,1773023438192,-151.0,3.114e-05,2]
[408011724,1773023438206,-151.0,3.114e-05,2]
[408011725,1773023438220,-250.54607739,3.237e-05,2]
[408011726,1773023438233,-500.0,3.263e-05,2]
[408011727,1773023438246,-3840.70586985,3.279e-05,2]
[408011832,1773023442218,-37.44009126,3.279e-05,2]
[408011848,1773023445626,-2514.24830568,3.279e-05,2]
[408011849,1773023445636,-1401.65,3.285e-05,2]
[408011850,1773023445645,-2210.391,3.285e-05,2]
[408011851,1773023445654,-639.0,3.285e-05,2]
[408011852,1773023445664,-13.79704937,3.285e-05,2]
[408011853,1773023445681,-726.20295063,3.285e-05,2]
[408011854,1773023445701,-453.634,3.285e-05,2]
[408011855,1773023445721,-823.0,3.325e-05,2]
[408011856,1773023445731,-6061.0841579,3.35e-05,2]
[408011857,1773023445741,-151.0,3.35e-05,2]
[408011858,1773023445752,-151.0,3.35e-05,2]
[408011859,1773023445762,-151.0,3.4e-05,2]
[408011860,1773023445773,-151.0,3.4e-05,2]
[408011861,1773023445784,-1352.4106788,3.435e-05,2]
[408011862,1773023445793,-787.0,3.5e-05,2]
[408011863,1773023445802,-1152.0,3.657e-05,2]
[408011864,1773023445812,-689.0,3.7e-05,2]
[408011865,1773023445821,-689.0,3.7e-05,2]
[408011866,1773023445835,-167.78723393,3.7e-05,2]
[408011867,1773023445856,-689.0,3.7e-05,2]
[408011868,1773023445876,-689.0,3.7e-05,2]
[408011869,1773023445885,-689.0,3.7e-05,2]
[408011870,1773023445894,-689.0,3.7e-05,2]
[408011871,1773023445906,-689.0,3.7e-05,2]
[408011872,1773023445916,-689.0,3.7e-05,2]
[408011873,1773023445927,-689.0,3.7e-05,2]
[408011874,1773023445938,-472.15818572,3.7e-05,2]
[408011875,1773023445949,-151.0,3.7e-05,2]
[408011876,1773023445959,-151.0,3.7e-05,2]
[408011877,1773023445970,-500.0,4e-05,2]
[408011878,1773023445981,-500.0,4e-05,2]
[408011879,1773023445993,-500.0,4e-05,2]
[408011880,1773023446003,-500.0,4e-05,2]
[408011881,1773023446013,-500.0,4e-05,2]
[408011882,1773023446022,-500.0,4e-05,2]
[408011883,1773023446032,-500.0,4e-05,2]
[408011884,1773023446041,-500.0,4e-05,2]
[408011885,1773023446051,-500.0,4e-05,2]
[408011886,1773023446061,-500.0,4e-05,2]
[408011887,1773023446073,-500.0,4e-05,2]
[408011888,1773023446082,-206.69911395,4e-05,2]
[408011889,1773023446097,-293.30088605,4e-05,2]
[408011890,1773023446110,-247.6228256,4e-05,2]
[408011892,1773023562647,2296.3,0.00027397,120]
[408011895,1773023654211,2279.9,0.00027397,120]
[408011901,1773024022298,4020.0,0.00027397,120]
[408011905,1773024152468,-2100.0,3.294e-05,2]
[408011918,1773024455045,438.1251924,0.0002038,120]
[408011919,1773024456296,438.1251924,0.00020494,120]
[408011924,1773024620739,10000.0,0.00027397,120]
[408011956,1773024632306,-891.0,3.228e-05,2]
[408011958,1773024632318,-500.0,3.228e-05,2]
[408011995,1773024637887,-1696.04388854,3.228e-05,2]
[408011996,1773024637896,-311.19771737,3.294e-05,2]
[408011997,1773024637906,-280.6538706,3.395e-05,2]
[408011998,1773024637915,-300.0,3.41e-05,2]
[408011999,1773024637925,-498.788,3.411e-05,2]
[408012000,1773024637935,-497.05529402,3.411e-05,2]
[408012001,1773024637949,-141.94470598,3.411e-05,2]
[408012002,1773024637960,-1391.0,3.411e-05,2]
[408012003,1773024637970,-732.0,3.411e-05,2]
[408012004,1773024637979,-454.314,3.411e-05,2]
[408012005,1773024637989,-150.193,3.411e-05,2]
[408012006,1773024637998,-152.0718,3.5e-05,2]
[408012007,1773024638008,-500.0,3.625e-05,2]
[408012008,1773024638018,-236.5400983,3.718e-05,2]
[408012009,1773024638027,-420.0,3.751e-05,2]
[408012010,1773024638036,-787.0,3.8e-05,2]
[408012011,1773024638046,-501.01014045,3.853e-05,2]
[408012012,1773024638055,-500.0,3.853e-05,2]
[408012013,1773024638065,-500.0,3.853e-05,2]
[408012014,1773024638074,-500.40580219,3.853e-05,2]
[408012015,1773024638083,-500.0,3.853e-05,2]
[408012016,1773024638092,-500.0,3.853e-05,2]
[408012017,1773024638101,-96.79151181,3.853e-05,2]
[408012018,1773024638112,-403.20848819,3.853e-05,2]
[408012019,1773024638122,-500.0,3.853e-05,2]
[408012020,1773024638131,-500.0,3.853e-05,2]
[408012021,1773024638140,-441.71223502,3.853e-05,2]
[408012331,1773024643055,-58.28776498,3.853e-05,2]
[408012333,1773024643065,-267.27100799,3.853e-05,2]
[408012474,1773024645801,-233.00611738,3.853e-05,2]
[408012475,1773024645811,-84359.86494622,3.879e-05,2]
[408012476,1773024645823,-1006.49950984,3.879e-05,2]
[408012477,1773024645834,-452.3972,3.879e-05,2]
[408012478,1773024645854,-10501.62486935,3.879e-05,2]
[408012517,1773024757097,63000.0,0.00027397,120]
[408012518,1773024796529,10000.0,0.00027397,120]
[408012527,1773024900597,10000.0,0.00027397,120]
[408012528,1773024909458,10000.0,0.00027397,120]
[408012529,1773024916405,10000.0,0.00027397,120]
[408012530,1773024922809,10000.0,0.00027397,120]
[408012531,1773024931717,10000.0,0.00027397,120]
[408012532,1773024938291,10000.0,0.00027397,120]
[408012533,1773024943983,10000.0,0.00027397,120]
[408012534,1773024951365,10000.0,0.00027397,120]
[408012535,1773024957914,10000.0,0.00027397,120]
[408012536,1773024972591,6535.75,0.00027397,120]
[408012537,1773024986862,6535.0,0.00027397,120]
[408012538,1773024991790,164.74,0.000273,120]
[408012541,1773025053893,5499.99986,0.00027397,120]
[408012550,1773025224252,-2128.64866603,2.94e-05,2]
[408012558,1773025637163,10000.0,0.00027397,120]
[408012564,1773025658191,8488.0,0.00027397,120]
[408012565,1773025767559,160.2,0.0002739,120]
[408012566,1773025823512,-4598.47578649,2.882e-05,2]
[408012567,1773025823535,-301.52421351,2.933e-05,2]
[408012968,1773025843103,-3.44954952,2.933e-05,2]
[408012969,1773025843112,-300.0,2.999e-05,2]
[408012970,1773025843121,-135.42066617,3e-05,2]
[408013124,1773025846766,-364.57933383,3e-05,2]
[408013125,1773025846775,-633.06,3e-05,2]
[408013126,1773025846787,-500.0,3e-05,2]
[408013127,1773025846796,-500.0,3e-05,2]
[408013128,1773025846808,-500.0,3e-05,2]
[408013129,1773025846817,-500.0,3e-05,2]
[408013130,1773025846826,-500.0,3e-05,2]
[408013131,1773025846835,-500.0,3e-05,2]
[408013132,1773025846844,-500.0,3e-05,2]
[408013133,1773025846854,-500.0,3e-05,2]
[408013134,1773025846864,-500.0,3e-05,2]
[408013135,1773025846872,-500.0,3e-05,2]
[408013136,1773025846881,-202.36066617,3e-05,2]
[408013137,1773025846892,-297.63933383,3e-05,2]
[408013138,1773025846909,-500.0,3e-05,2]
[408013139,1773025846920,-500.0,3e-05,2]
[408013140,1773025846929,-500.0,3e-05,2]
[408013141,1773025846938,-500.0,3e-05,2]
[408013142,1773025846947,-500.0,3e-05,2]
[408013143,1773025846957,-500.0,3e-05,2]
[408013144,1773025846966,-500.0,3e-05,2]
[408013145,1773025846976,-500.0,3e-05,2]
[408013146,1773025846985,-500.0,3e-05,2]
[408013147,1773025846994,-500.0,3e-05,2]
[408013148,1773025847004,-500.0,3e-05,2]
[408013149,1773025847013,-500.0,3e-05,2]
[408013150,1773025847022,-500.0,3e-05,2]
[408013151,1773025847032,-500.0,3e-05,2]
[408013152,1773025847042,-500.0,3e-05,2]
[408013153,1773025847052,-500.0,3e-05,2]
[408013154,1773025847066,-500.0,3e-05,2]
[408013155,1773025847076,-500.0,3e-05,2]
[408013157,1773025847086,-500.0,3e-05,2]
[408013159,1773025847095,-500.0,3e-05,2]
[408013161,1773025847105,-500.0,3e-05,2]
[408013163,1773025847115,-465.75035473,3e-05,2]
[408013165,1773025847125,-500.45849971,3e-05,2]
[408013166,1773025847134,-500.0,3e-05,2]
[408013167,1773025847144,-500.0,3e-05,2]
[408013168,1773025847153,-501.56727706,3e-05,2]
[408013169,1773025847163,-500.0,3e-05,2]
[408013170,1773025847173,-500.0,3e-05,2]
[408013171,1773025847183,-500.0,3e-05,2]
[408013172,1773025847194,-500.61546425,3e-05,2]
[408013173,1773025847203,-420.0,3.299e-05,2]
[408013174,1773025847213,-150.191,3.411e-05,2]
[408013175,1773025847223,-150.193,3.411e-05,2]
[408013176,1773025847232,-150.051,3.411e-05,2]
[408013177,1773025847242,-448.914,3.432e-05,2]
[408013178,1773025847251,-435.0,3.432e-05,2]
[408013179,1773025847261,-463.14400591,3.548e-05,2]
[408013180,1773025847271,-1000.0,3.548e-05,2]
[408013181,1773025847280,-1000.0,3.548e-05,2]
[408013182,1773025847290,-1000.0,3.548e-05,2]
[408013183,1773025847301,-1000.0,3.548e-05,2]
[408013184,1773025847315,-587.0,3.629e-05,2]
[408013185,1773025847325,-500.0,3.633e-05,2]
[408013186,1773025847334,-500.41056271,3.633e-05,2]
[408013187,1773025847345,-500.0,3.633e-05,2]
[408013188,1773025847356,-7813.32730672,3.633e-05,2]
[408013189,1773025847367,-500.26880222,3.633e-05,2]
[408013190,1773025847377,-500.24917123,3.633e-05,2]
[408013191,1773025847387,-500.0,3.633e-05,2]
[408013192,1773025847399,-32143.1947243,3.65e-05,2]
[408013193,1773025847412,-12624.44909258,3.65e-05,2]
[408013194,1773025847424,-280.70606371,3.65e-05,2]
[408013198,1773026049870,1200.0,0.00027397,120]
[408013199,1773026093215,10000.0,0.00027397,120]
[408013200,1773026100608,10000.0,0.00027397,120]
[408013257,1773026817115,-696.01276113,2.549e-05,2]
[408013258,1773026817137,-298.87428776,2.575e-05,2]
[408013259,1773026817157,-165.7347823,2.601e-05,2]
[408013260,1773026817178,-15275.93429488,3.4e-05,2]
[408013261,1773026824063,3000.0,0.00027397,120]
[408013264,1773026976369,2021.14,0.00027397,120]
[408013303,1773027032139,-37708.40601584,3.4e-05,2]
[408013305,1773027032153,-2220.92880304,3.4e-05,2]
[408013641,1773027043440,-1826.28401401,3.4e-05,2]
[408013645,1773027046181,-2871.35133397,3.378e-05,2]
[408013646,1773027046191,-3591.91922456,3.4e-05,2]
[408013649,1773027212356,897.07,0.00027397,120]
[408013650,1773027212581,897.07,0.00027397,120]
[408013651,1773027212798,500.0,0.00027397,120]
[408013652,1773027212848,897.07,0.00027397,120]
[408013653,1773027212987,500.0,0.00027397,120]
[408013654,1773027213075,897.07,0.00027397,120]
[408013655,1773027213118,517.48,0.00027397,120]
[408013656,1773027213245,500.0,0.00027397,120]
[408013657,1773027213343,897.07,0.00027397,120]
[408013658,1773027213385,517.48,0.00027397,120]
[408013659,1773027213464,500.0,0.00027397,120]
[408013660,1773027213508,500.0,0.00027397,120]
[408013661,1773027213585,517.48,0.00027397,120]
[408013662,1773027213710,500.0,0.00027397,120]
[408013663,1773027213751,500.0,0.00027397,120]
[408013664,1773027213833,500.0,0.00027397,120]
[408013665,1773027213880,897.07,0.00027397,120]
[408013666,1773027213919,517.48,0.00027397,120]
[408013667,1773027213960,500.0,0.00027397,120]
[408013668,1773027213999,500.0,0.00027397,120]
[408013669,1773027214044,500.0,0.00027397,120]
[408013670,1773027214084,517.48,0.00027397,120]
[408013671,1773027214186,284.0771945,0.00027397,120]
[408013672,1773027214229,500.0,0.00027397,120]
[408013673,1773027214270,500.0,0.00027397,120]
[408013674,1773027214314,517.48,0.00027397,120]
[408013675,1773027214357,500.0,0.00027397,120]
[408013676,1773027214431,500.0,0.00027397,120]
[408013677,1773027214493,500.0,0.00027397,120]
[408013678,1773027214553,517.48,0.00027397,120]
[408013679,1773027214588,500.0,0.00027397,120]
[408013680,1773027214655,500.0,0.00027397,120]
[408013681,1773027214716,500.0,0.00027397,120]
[408013682,1773027214770,500.0,0.00027397,120]
[408013683,1773027214805,517.48,0.00027397,120]
[408013684,1773027214890,500.0,0.00027397,120]
[408013685,1773027214946,500.0,0.00027397,120]
[408013686,1773027215011,500.0,0.00027397,120]
[408013687,1773027215080,517.48,0.00027397,120]
[408013688,1773027215117,500.0,0.00027397,120]
[408013689,1773027215154,500.0,0.00027397,120]
[408013690,1773027215223,155.04464896,0.00027397,120]
[408013691,1773027215272,500.0,0.00027397,120]
[408013692,1773027215324,517.48,0.00027397,120]
[408013693,1773027215367,500.0,0.00027397,120]
[408013694,1773027215433,500.0,0.00027397,120]
[408013695,1773027216159,500.0,0.00027397,120]
[408013696,1773027216827,517.48,0.00027397,120]
[408013697,1773027216856,500.0,0.00027397,120]
[408013698,1773027216884,500.0,0.00027397,120]
[408013699,1773027216921,187.26934536,0.00027397,120]
[408013700,1773027216958,517.48,0.00027397,120]
[408013701,1773027216994,517.48,0.00027397,120]
[408013702,1773027217026,517.48,0.00027397,120]
[408013703,1773027217060,517.48,0.00027397,120]
[408013704,1773027217103,517.48,0.00027397,120]
[408013705,1773027217136,517.48,0.00027397,120]
[408013706,1773027217235,517.48,0.00027397,120]
[408013707,1773027217574,517.48,0.00027397,120]
[408013708,1773027217700,517.48,0.00027397,120]
[408013709,1773027217887,1442.56,0.00027397,120]
[408013710,1773027218125,1442.56,0.00027397,120]
[408013711,1773027218328,517.48,0.00027397,120]
[408013712,1773027218362,1442.56,0.00027397,120]
[408013713,1773027218526,517.48,0.00027397,120]
[408013714,1773027218578,1442.56,0.00027397,120]
[408013715,1773027218738,2761.92,0.00027397,120]
[408013716,1773027218795,517.48,0.00027397,120]
[408013717,1773027218828,1442.56,0.00027397,120]
[408013718,1773027218883,500.0,0.00027397,120]
[408013719,1773027219036,2761.92,0.00027397,120]
[408013720,1773027219471,360.64137318,0.00027397,120]
[408013721,1773027219508,517.5293272,0.00027397,120]
[408013722,1773027219551,1442.56,0.00027397,120]
[408013723,1773027219593,500.0,0.00027397,120]
[408013724,1773027219623,2761.92,0.00027397,120]
[408013725,1773027219653,1442.56,0.00027397,120]
[408013726,1773027219680,500.0,0.00027397,120]
[408013727,1773027219716,2761.92,0.00027397,120]
[408013728,1773027219743,1442.56,0.00027397,120]
[408013729,1773027219772,725.52,0.00027397,120]
[408013730,1773027219800,500.0,0.00027397,120]
[408013731,1773027219827,-2000.0,3.233e-05,2]
[408013732,1773027219855,2761.92,0.00027397,120]
[408013733,1773027219882,1442.56,0.00027397,120]
[408013734,1773027219911,500.0,0.00027397,120]
[408013735,1773027219939,725.52,0.00027397,120]
[408013736,1773027220012,2761.92,0.00027397,120]
[408013737,1773027220049,500.0,0.00027397,120]
[408013738,1773027220081,725.52,0.00027397,120]
[408013739,1773027220254,2761.92,0.00027397,120]
[408013740,1773027220289,500.0,0.00027397,120]
[408013741,1773027220321,725.52,0.00027397,120]
[408013742,1773027220429,1442.56,0.00027397,120]
[408013743,1773027220481,2761.92,0.00027397,120]
[408013744,1773027220512,500.0,0.00027397,120]
[408013745,1773027220543,725.52,0.00027397,120]
[408013746,1773027220653,1442.56,0.00027397,120]
[408013747,1773027220724,2761.92,0.00027397,120]
[408013748,1773027220749,-2000.0,3.233e-05,2]
[408013749,1773027220782,500.0,0.00027397,120]
[408013750,1773027220911,1442.56,0.00027397,120]
[408013751,1773027220969,2761.92,0.00027397,120]
[408013752,1773027221034,500.0,0.00027397,120]
[408013753,1773027221095,1442.56,0.00027397,120]
[408013754,1773027221129,725.52,0.00027397,120]
[408013755,1773027221207,2761.92,0.00027397,120]
[408013756,1773027221243,500.0,0.00027397,120]
[408013757,1773027221303,500.0,0.00027397,120]
[408013758,1773027221355,1442.56,0.00027397,120]
[408013759,1773027221392,725.52,0.00027397,120]
[408013760,1773027221434,2761.92,0.00027397,120]
[408013761,1773027221513,500.0,0.00027397,120]
[408013762,1773027221544,500.0,0.00027397,120]
[408013763,1773027221586,1442.56,0.00027397,120]
[408013764,1773027221646,725.52,0.00027397,120]